bitfinex/quotes_ETHUSD_20250425
["timestamp","ask_amount","ask_price","bid_price","bid_amount"]
[1745597103797,1.41964334,1804.0,1803.4,5.60042863]
[1745597104123,0.7966,1804.0,1803.4,5.60042863]
[1745597104339,0.7966,1804.0,1803.5,5.54464859]
[1745597104497,0.7966,1804.0,1803.5,5.54460398]
[1745597104698,0.7966,1804.0,1803.5,0.05543554]
[1745597104897,6.1812434,1804.2,1803.8,5.54357343]
[1745597105114,6.1812434,1804.2,1803.9,0.55435734]
[1745597105314,0.7814,1804.2,1803.9,0.55435734]
[1745597105710,0.7814,1804.2,1803.8,0.7581]
[1745597105956,0.7814,1804.2,1803.8,6.30194394]
[1745597106952,0.7814,1804.2,1803.8,0.7581]
[1745597107149,0.7814,1804.2,1803.7,3.0]
[1745597107333,0.7814,1804.2,1803.7,8.59958424]
[1745597107644,0.7814,1804.2,1803.8,6.40380547]
[1745597107822,0.7814,1804.2,1803.8,0.85995842]
[1745597108023,0.7814,1804.2,1803.8,6.45921438]
[1745597108248,0.7814,1804.2,1803.8,6.4037856]
[1745597108546,0.7814,1804.2,1803.8,0.85995842]
[1745597108915,0.7814,1804.2,1803.7,3.0]
[1745597109550,0.7814,1804.2,1803.6,5.871]
[1745597109712,1.20497878,1804.2,1803.6,5.871]
[1745597109915,0.84899003,1804.1,1803.6,5.871]
[1745597110334,5.3998434,1804.0,1803.2,5.871]
[1745597110527,0.815,1803.8,1803.2,5.871]
[1745597111142,0.7659,1803.6,1802.9,5.0]
[1745597111343,0.7659,1803.5,1802.9,5.0]
[1745597112023,0.79989003,1803.5,1802.9,5.0]
[1745597112345,0.79989003,1803.5,1802.8,5.871]
[1745597112560,0.7863,1803.4,1802.8,5.871]
[1745597112762,0.03399003,1803.3,1802.5,0.5]
[1745597112947,0.7863,1803.2,1802.5,1.1359]
[1745597113136,0.82029003,1803.2,1802.5,6.6837225]
[1745597113332,0.82029003,1803.2,1802.5,1.1359]
[1745597113537,0.82029003,1803.2,1802.5,6.68372379]
[1745597113735,0.82029003,1803.2,1802.5,6.68354608]
[1745597113933,1.40831334,1803.2,1802.6,0.66835461]
[1745597114239,0.7662,1803.1,1802.6,0.66835461]
[1745597114424,0.7662,1803.1,1802.5,6.6837254]
[1745597115232,0.8207,1803.4,1803.0,5.54620635]
[1745597115436,0.8207,1803.4,1803.0,0.05545412]
[1745597115761,0.8207,1803.4,1803.0,5.54627783]
[1745597115925,0.8207,1803.4,1803.0,1.98040211]
[1745597116327,0.8207,1803.4,1803.0,7.52666163]
[1745597116524,0.8207,1803.4,1803.0,7.52649087]
[1745597116759,0.8207,1803.4,1803.1,5.54600012]
[1745597116960,0.8207,1803.4,1803.0,7.52653964]
[1745597117224,0.8207,1803.4,1803.1,0.75265396]
[1745597117730,0.8207,1803.4,1802.9,5.86]
[1745597118431,0.8207,1803.4,1802.9,11.40661083]
[1745597118752,0.8207,1803.4,1802.9,11.40656573]
[1745597118957,0.8207,1803.4,1803.0,5.60153727]
[1745597119158,0.8207,1803.4,1803.0,5.54607929]
[1745597119328,0.8207,1803.4,1803.1,0.55460793]
[1745597119533,0.8207,1803.4,1802.9,11.40661368]
[1745597119763,0.8207,1803.4,1802.9,5.86]
[1745597120104,0.8207,1803.4,1802.7,5.54720601]
[1745597120307,0.85469003,1803.4,1802.7,5.54720601]
[1745597120894,0.8207,1803.4,1802.7,5.54720601]
[1745597121194,0.7581,1803.3,1802.8,0.5547206]
[1745597121500,0.7581,1803.3,1802.7,5.54719694]
[1745597121798,0.7581,1803.3,1802.7,5.54704898]
[1745597121963,0.7581,1803.3,1802.6,5.95518435]
[1745597122160,0.7581,1803.3,1802.7,5.54714079]
[1745597122478,0.7581,1803.3,1802.6,3.0]
[1745597122679,0.7581,1803.2,1802.7,5.84721002]
[1745597123294,0.7581,1803.2,1802.7,0.3]
[1745597124004,0.7581,1803.2,1802.7,5.84711078]
[1745597124167,0.7581,1803.2,1802.7,0.3]
[1745597125001,0.7581,1803.2,1802.5,6.9959]
[1745597125204,0.79209003,1803.2,1802.5,6.9959]
[1745597125376,2.85138001,1803.1,1802.5,0.5]
[1745597125567,2.85138001,1802.7,1802.5,0.5]
[1745597125897,0.79209003,1802.6,1802.5,0.5]
[1745597126063,0.7581,1802.6,1802.5,0.5]
[1745597126261,0.79209003,1802.6,1802.5,0.5]
[1745597126463,1.15643703,1802.6,1802.5,0.5]
[1745597126811,0.7581,1802.6,1802.5,0.5]
[1745597131488,0.90572514,1802.6,1802.5,0.5]
[1745597134915,5.3998434,1803.2,1802.6,5.54743091]
[1745597135119,0.796,1803.1,1802.6,6.33293091]
[1745597135501,0.796,1803.1,1802.6,6.33285099]
[1745597135700,0.796,1803.1,1802.7,0.0554649]
[1745597135913,0.8085,1803.5,1803.0,6.31083037]
[1745597136113,0.8085,1803.5,1803.1,5.54587907]
[1745597136326,0.8085,1803.5,1803.2,5.54565673]
[1745597136531,0.8085,1803.5,1803.2,5.54558888]
[1745597136695,5.3998434,1803.8,1803.3,5.54519675]
[1745597136696,6.2111434,1803.8,1803.3,5.54519675]
[1745597137094,0.8113,1803.8,1803.4,6.32437252]
[1745597137300,0.8113,1803.8,1803.4,7.51678509]
[1745597137501,0.8113,1803.8,1803.5,5.54459263]
[1745597137702,0.7834,1804.0,1803.6,5.54446662]
[1745597138191,0.7834,1804.0,1803.6,5.54425783]
[1745597138393,0.7834,1804.3,1803.7,0.05543348]
[1745597138592,0.8285,1804.6,1804.0,5.5430693]
[1745597138864,0.8285,1804.6,1803.9,12.22025713]
[1745597139016,0.8285,1804.6,1803.9,5.862]
[1745597139389,0.8285,1804.6,1803.5,4.22837752]
[1745597139390,0.86249003,1804.5,1803.5,4.22837752]
[1745597139603,0.86249003,1804.5,1803.2,6.03]
[1745597139604,3.0,1804.2,1802.9,6.36150647]
[1745597139809,1.16249003,1804.1,1803.1,11.09166236]
[1745597139999,1.28728426,1804.1,1803.2,3.0]
[1745597140233,0.8285,1804.0,1803.2,3.0]
[1745597140539,0.8285,1803.8,1803.2,3.0]
[1745597140698,0.8285,1803.8,1803.0,12.44764964]
[1745597140893,0.11065613,1803.7,1803.0,0.63108304]
[1745597141137,0.86579003,1803.6,1802.9,5.862]
[1745597141309,0.10861496,1803.5,1802.9,5.862]
[1745597142238,0.86579003,1803.6,1802.9,5.862]
[1745597142397,0.86579003,1803.6,1802.9,11.40860832]
[1745597142936,0.86579003,1803.6,1802.9,5.862]
[1745597143137,0.7987,1803.5,1802.8,3.0]
[1745597143438,0.7987,1803.5,1803.0,5.54631145]
[1745597143823,0.7987,1803.5,1803.1,0.05545377]
[1745597144031,0.10847631,1803.4,1803.0,5.54631145]
[1745597144345,0.10847631,1803.4,1803.0,8.5461128]
[1745597144648,0.7987,1803.5,1803.2,5.54565376]
[1745597144818,0.7987,1803.5,1803.2,0.56011044]
[1745597145013,0.10847631,1803.4,1803.2,0.56011044]
[1745597145721,0.10847631,1803.4,1803.2,6.10580461]
[1745597146036,6.1973434,1803.8,1803.2,6.10580461]
[1745597146199,0.10838956,1803.3,1803.2,0.56011044]
[1745597146533,6.1973434,1803.8,1803.2,6.10580697]
[1745597146736,6.1973434,1803.8,1803.3,0.6105807]
[1745597146895,6.1973434,1803.8,1803.4,5.848]
[1745597146896,0.10873653,1803.7,1803.4,5.848]
[1745597147516,0.7975,1803.8,1803.4,5.848]
[1745597147730,0.10873653,1803.7,1803.4,11.39295203]
[1745597147903,0.7975,1803.8,1803.4,13.14781491]
[1745597148104,0.10873653,1803.7,1803.4,7.60286288]
[1745597148314,0.7975,1803.8,1803.4,7.60286288]
[1745597148636,0.10873653,1803.7,1803.4,7.60286288]
[1745597149042,0.8231,1804.0,1803.5,5.54460497]
[1745597149338,0.8231,1804.0,1803.6,0.5544605]
[1745597150249,0.8231,1804.0,1803.6,6.09880071]
[1745597150556,0.8231,1804.0,1803.6,6.09879791]
[1745597151253,0.8231,1804.0,1803.6,0.5544605]
[1745597151453,0.8231,1804.0,1803.5,3.0]
[1745597151865,0.8231,1804.0,1801.8,0.7553]
[1745597151866,3.0,1803.5,1801.8,0.7553]
[1745597152164,0.7686,1802.9,1801.8,0.7553]
[1745597152318,0.7686,1802.9,1802.2,5.847]
[1745597152520,0.7686,1802.9,1802.4,0.0554745]
[1745597153061,0.7686,1802.9,1802.3,1.1654566]
[1745597153415,0.7686,1803.2,1802.3,4.1654566]
[1745597154462,0.7686,1803.2,1802.4,5.848]
[1745597154760,0.7686,1803.2,1802.5,0.5848]
[1745597155951,0.03399003,1803.1,1802.5,0.5848]
[1745597156153,3.03399003,1803.1,1802.5,5.848]
[1745597156448,3.65798001,1803.0,1802.5,5.848]
[1745597156649,0.03399003,1802.9,1802.5,5.848]
[1745597156855,0.8066,1803.0,1802.5,5.848]
[1745597158036,0.03399003,1802.9,1802.5,5.848]
[1745597158491,0.40318703,1802.9,1802.5,5.848]
[1745597159777,0.7612,1802.8,1802.5,5.848]
[1745597159949,1.18283812,1802.8,1802.5,5.848]
[1745597160356,0.7612,1802.8,1802.5,5.848]
[1745597160798,2.85138001,1802.7,1802.5,5.848]
[1745597161142,3.21263801,1802.7,1802.5,5.848]
[1745597163068,0.7612,1802.8,1802.5,5.848]
[1745597165202,2.85138001,1802.7,1802.5,5.848]
[1745597166404,3.25836287,1802.7,1802.3,0.4101566]
[1745597166601,2.85138001,1802.5,1802.3,0.4101566]
[1745597169281,0.84999003,1802.4,1802.3,0.4101566]
[1745597169485,4.22012703,1802.4,1802.3,0.4101566]
[1745597170804,9.56627043,1802.4,1802.3,0.4101566]
[1745597172475,9.5322804,1802.4,1802.3,0.4101566]
[1745597172879,0.7774,1802.6,1802.3,0.4101566]
[1745597173519,2.88537004,1802.5,1802.3,0.4101566]
[1745597173727,3.7786,1802.4,1802.3,0.4101566]
[1745597174212,3.81259003,1802.4,1802.3,0.4101566]
[1745597175125,4.23424786,1802.4,1802.3,0.4101566]
[1745597175292,5.48279499,1802.4,1802.3,0.4101566]
[1745597175876,10.88263839,1802.4,1802.3,0.4101566]
[1745597176101,11.18756004,1802.4,1802.3,0.4101566]
[1745597177807,17.00556004,1802.4,1802.3,0.14206853]
[1745597178029,0.7985,1801.4,1800.1,0.05]
[1745597178331,2.85138001,1800.6,1800.1,0.05]
[1745597178485,3.67488001,1800.6,1800.1,0.05]
[1745597179310,0.8235,1800.4,1799.2,1.54142115]
[1745597179538,0.85749003,1800.3,1799.2,1.54142115]
[1745597180029,0.03399003,1800.8,1799.5,0.784]
[1745597180235,0.45800828,1800.8,1799.6,0.05555733]
[1745597180434,3.0,1800.7,1799.5,0.784]
[1745597180631,3.0,1800.4,1799.5,0.784]
[1745597180836,0.03399003,1800.3,1799.5,0.784]
[1745597180990,0.03399003,1800.3,1799.6,5.843]
[1745597180991,3.12212427,1800.2,1799.6,5.843]
[1745597181302,3.12212427,1800.2,1799.2,1.55572115]
[1745597181303,0.8258,1800.0,1799.2,0.75742115]
[1745597181502,0.8258,1800.0,1799.2,3.75742115]
[1745597181688,0.8258,1800.0,1799.2,0.75742115]
[1745597181890,0.03399003,1799.9,1799.2,0.75742115]
[1745597182316,0.7782,1799.8,1799.2,0.75742115]
[1745597182597,0.03399003,1799.7,1799.2,0.75742115]
[1745597183448,0.7807,1799.6,1799.2,0.75742115]
[1745597183744,0.03399003,1799.5,1799.2,0.75742115]
[1745597184096,0.03399003,1799.5,1799.1,0.05]
[1745597184097,0.7706,1799.2,1799.1,0.05]
[1745597184529,0.80459003,1799.5,1799.1,0.05]
[1745597185036,6.20443343,1799.5,1799.1,0.05]
[1745597185193,5.3998434,1799.4,1799.1,0.05]
[1745597185393,0.03399003,1799.3,1799.1,0.05]
[1745597185899,6.1704434,1799.2,1799.1,0.05]
[1745597186120,9.1704434,1799.2,1799.1,0.05]
[1745597186454,6.1704434,1799.2,1799.1,0.05]
[1745597186751,6.1704434,1799.2,1798.6,0.4101566]
[1745597186752,3.8327,1798.8,1798.6,0.4101566]
[1745597186899,0.8327,1798.6,1798.4,0.81029685]
[1745597187248,0.03399003,1798.5,1798.4,0.81029685]
[1745597188070,0.85699003,1798.5,1798.1,0.05]
[1745597189070,0.823,1798.5,1798.1,0.05]
[1745597189668,0.03399003,1798.4,1798.1,0.05]
[1745597190763,0.80279003,1798.8,1798.1,0.05]
[1745597191049,0.80279003,1799.1,1798.4,0.55]
[1745597191257,0.80279003,1799.1,1798.5,5.849]
[1745597192342,0.80279003,1799.1,1798.2,0.7943]
[1745597192515,0.80279003,1799.1,1798.1,5.899]
[1745597194142,0.7666,1799.0,1798.1,5.899]
[1745597194355,0.7666,1798.8,1798.1,5.899]
[1745597194621,0.7666,1798.6,1798.1,0.05]
[1745597194837,0.03399003,1798.5,1798.1,0.05]
[1745597195628,0.7666,1798.6,1798.1,0.05]
[1745597196171,0.03399003,1798.5,1798.1,0.05]
[1745597202535,0.812,1798.4,1798.1,0.05]
[1745597202752,0.03399003,1798.3,1798.1,0.05]
[1745597203144,0.812,1798.2,1798.1,0.05]
[1745597203341,0.812,1798.2,1797.9,0.36129937]
[1745597203542,0.812,1798.0,1797.9,0.36129937]
[1745597205589,0.7684,1798.3,1797.9,0.36129937]
[1745597205788,0.03399003,1798.2,1797.9,0.36129937]
[1745597207563,0.46104474,1798.2,1797.9,0.36129937]
[1745597207874,0.7507,1798.1,1797.9,0.36129937]
[1745597208079,0.03399003,1798.0,1797.9,0.36129937]
[1745597208374,0.41245903,1798.0,1797.9,0.36129937]
[1745597208759,0.03399003,1798.0,1797.9,0.36129937]
[1745597211039,0.78469003,1798.1,1797.9,0.36129937]
[1745597212091,0.03399003,1798.0,1797.9,0.36129937]
[1745597212441,0.7507,1798.1,1797.9,0.36129937]
[1745597212741,0.03399003,1798.3,1797.9,0.36129937]
[1745597213246,0.33573599,1798.6,1798.0,5.853]
[1745597213555,0.33573599,1798.6,1798.0,6.47442994]
[1745597215542,0.30174596,1798.6,1798.4,0.8142]
[1745597215748,0.30174596,1798.6,1798.5,5.853]
[1745597216284,0.30174596,1798.6,1797.9,1.16019937]
[1745597216285,1.09564596,1798.6,1797.9,1.16019937]
[1745597216483,0.33573599,1798.5,1797.9,1.86151931]
[1745597216649,0.30174596,1798.5,1797.9,1.86151931]
[1745597216854,0.30174596,1798.5,1798.0,0.55]
[1745597217144,0.30174596,1798.5,1798.1,0.7989]
[1745597217365,0.82789003,1798.8,1798.1,0.7989]
[1745597217366,0.30174596,1798.7,1798.1,0.7989]
[1745597217572,0.03399003,1798.6,1798.1,0.7989]
[1745597218381,0.03399003,1798.6,1797.9,1.19059937]
[1745597218570,0.03399003,1798.6,1797.9,1.93716266]
[1745597218772,0.30174596,1798.5,1797.9,1.19059937]
[1745597218991,0.03399003,1798.4,1797.9,1.19059937]
[1745597219765,0.33573599,1798.4,1797.9,1.19059937]
[1745597220589,0.03399003,1798.4,1797.9,1.19059937]
[1745597220772,0.8161,1798.5,1797.9,1.19059937]
[1745597220975,0.03399003,1798.4,1797.9,1.19059937]
[1745597221189,0.8161,1798.3,1797.9,0.36129937]
[1745597221391,0.85009003,1798.2,1797.9,0.36129937]
[1745597221694,0.8274,1798.1,1797.9,0.36129937]
[1745597221897,0.86139003,1798.0,1797.9,0.36129937]
[1745597222569,1.16313599,1798.0,1797.9,0.36129937]
[1745597224000,0.30174596,1798.0,1797.9,0.36129937]
[1745597224183,0.30174596,1798.0,1797.9,1.16949937]
[1745597224384,0.03399003,1798.9,1798.2,0.8082]
[1745597224587,0.03399003,1799.2,1798.3,5.853]
[1745597224784,0.03399003,1799.2,1798.5,0.8082]
[1745597225499,0.03399003,1799.2,1798.6,0.55]
[1745597225884,0.03399003,1799.2,1798.5,0.8082]
[1745597226200,0.7594,1799.1,1798.3,5.852]
[1745597226501,0.03399003,1799.0,1798.3,5.852]
[1745597226876,0.03399003,1799.0,1798.3,6.51653]
[1745597227384,0.03399003,1799.0,1798.4,0.791]
[1745597227699,3.85809003,1799.5,1798.4,6.35139476]
[1745597227999,0.85809003,1799.5,1798.5,0.55]
[1745597229156,0.85809003,1799.5,1798.6,0.8251]
[1745597230505,0.8044,1799.4,1798.6,0.8251]
[1745597230795,0.03399003,1799.3,1798.4,6.6771]
[1745597231095,0.03399003,1799.3,1798.5,0.66771]
[1745597232291,0.03399003,1799.3,1798.6,0.7939]
[1745597235726,5.43383343,1799.3,1798.6,0.7939]
[1745597235939,5.43383343,1799.3,1798.4,5.911]
[1745597235940,0.8123,1799.2,1798.4,6.6891]
[1745597236104,0.03399003,1799.1,1798.4,6.6891]
[1745597236734,0.41861903,1799.1,1798.4,0.7781]
[1745597237825,0.41861903,1799.1,1798.4,6.6891]
[1745597238034,0.41861903,1799.1,1798.4,5.911]
[1745597238199,0.8206,1799.0,1798.4,5.911]
[1745597238394,0.03399003,1798.9,1798.4,5.911]
[1745597239319,5.43383343,1798.9,1798.4,5.911]
[1745597239520,1.34828334,1798.8,1797.9,1.13909937]
[1745597239718,5.43383343,1798.7,1797.9,1.13909937]
[1745597240529,5.3998434,1798.7,1798.1,0.8323]
[1745597240899,6.2085434,1799.0,1798.2,5.912]
[1745597241103,0.65484437,1798.9,1798.2,6.87473455]
[1745597241302,0.65484437,1798.9,1798.3,0.55]
[1745597241543,0.65484437,1798.9,1798.2,5.912]
[1745597241740,0.753,1798.8,1798.2,5.912]
[1745597241894,0.03399003,1798.7,1798.2,5.912]
[1745597242936,0.03399003,1798.7,1798.1,5.912]
[1745597244349,0.82489003,1799.0,1798.5,0.55]
[1745597244644,0.82489003,1799.3,1798.6,6.7186]
[1745597245617,0.7909,1799.3,1798.7,3.43304553]
[1745597245961,0.80789003,1799.5,1798.7,2.88304553]
[1745597246119,0.7739,1799.5,1799.0,0.55]
[1745597246325,0.80789003,1799.8,1799.1,5.912]
[1745597246526,0.80789003,1799.8,1799.1,6.5582]
[1745597247350,0.05,1799.9,1799.3,3.69424553]
[1745597247946,0.05,1799.9,1799.3,0.8112]
[1745597248144,0.05,1799.9,1799.4,0.55]
[1745597248659,0.05,1799.9,1799.5,0.7528]
[1745597248863,0.05,1799.9,1799.6,6.51656253]
[1745597249020,0.05,1799.9,1799.7,0.65165625]
[1745597249338,0.05,1799.9,1799.8,1.3534]
[1745597249722,0.05,1799.9,1799.8,6.9095729]
[1745597250314,0.05,1799.9,1799.8,9.9095729]
[1745597250513,0.05,1799.9,1799.8,9.8677729]
[1745597250748,0.05,1799.9,1799.8,11.47533967]
[1745597250952,0.05,1799.9,1799.8,5.91916677]
[1745597251131,0.05,1799.9,1799.8,4.3116]
[1745597251326,0.05,1799.9,1799.8,9.8677729]
[1745597251532,0.05,1799.9,1799.8,9.92331608]
[1745597251781,0.05,1799.9,1799.8,9.8677729]
[1745597252500,0.05,1799.9,1799.8,9.92331274]
[1745597252664,0.05,1799.9,1799.8,11.53643644]
[1745597252864,0.05,1800.9,1800.4,0.55]
[1745597253066,0.05,1800.9,1800.6,0.55]
[1745597253792,0.7712,1800.8,1800.5,5.909]
[1745597254286,0.03399003,1800.7,1800.5,5.909]
[1745597254867,0.80519003,1800.8,1800.5,5.909]
[1745597255261,0.80519003,1800.8,1800.2,16.669]
[1745597255512,0.7711,1800.6,1800.0,5.909]
[1745597255687,0.03399003,1800.5,1800.0,5.909]
[1745597256023,0.62049334,1800.5,1800.0,5.909]
[1745597256393,6.1709434,1800.6,1800.0,5.909]
[1745597256976,0.03399003,1800.5,1800.0,5.909]
[1745597257801,0.03399003,1800.5,1799.8,0.8007]
[1745597258003,0.03399003,1800.5,1799.9,5.908]
[1745597258796,6.1709434,1800.6,1799.9,5.908]
[1745597258995,6.1709434,1800.6,1800.0,1.1408]
[1745597259195,5.3998434,1800.8,1800.1,0.7827]
[1745597259407,0.05,1800.9,1800.2,0.55]
[1745597259613,0.08399003,1800.9,1800.2,0.55]
[1745597260414,0.08399003,1800.9,1800.1,0.7827]
[1745597260415,0.7912,1800.8,1800.1,0.7827]
[1745597260920,0.03399003,1800.7,1800.1,0.7827]
[1745597261291,0.8208,1800.6,1799.9,5.908]
[1745597261620,0.03399003,1800.5,1799.9,6.88989437]
[1745597261821,0.8208,1800.4,1799.9,5.908]
[1745597261992,0.8208,1800.4,1799.7,0.40754439]
[1745597262199,0.8208,1800.4,1799.9,5.907]
[1745597263115,0.8208,1800.4,1799.8,0.55]
[1745597263287,0.85529003,1800.7,1800.0,1.3352]
[1745597263489,1.36468334,1800.7,1800.0,2.05942]
[1745597264020,0.8213,1800.7,1800.0,7.61497262]
[1745597264235,0.8213,1800.7,1800.0,2.05942]
[1745597266194,0.8213,1800.7,1800.0,7.61496184]
[1745597266424,0.867,1800.9,1800.2,0.55]
[1745597266789,0.867,1800.9,1800.4,0.55]
[1745597267125,0.867,1800.9,1800.5,5.846]
[1745597268024,0.867,1800.9,1800.5,6.4856]
[1745597268323,0.05,1800.9,1800.6,0.55]
[1745597268490,0.05,1800.9,1800.7,0.8199]
[1745597268688,0.05,1800.9,1800.8,0.60552579]
[1745597269125,0.05,1800.9,1800.8,0.55]
[1745597269426,0.05,1800.9,1800.8,0.99882437]
[1745597270390,0.05,1800.9,1800.8,1.81672437]
[1745597270613,0.05,1800.9,1800.8,4.81672437]
[1745597270952,0.05,1800.9,1800.8,10.36981188]
[1745597271354,0.05,1800.9,1800.8,10.42532371]
[1745597271745,0.05,1800.9,1800.8,10.36981188]
[1745597272045,0.05,1800.9,1800.8,10.66172437]
[1745597272242,0.05,1800.9,1800.5,6.4846]
[1745597272415,0.05,1800.9,1800.5,5.845]
[1745597272416,0.8474,1800.9,1800.5,5.845]
[1745597273649,0.8474,1800.9,1800.6,5.845]
[1745597274053,0.05,1800.9,1800.6,5.845]
[1745597274421,0.05,1800.9,1800.5,0.55]
[1745597274622,0.05,1800.9,1800.6,5.844]
[1745597275247,0.05,1800.9,1800.1,5.844]
[1745597275248,0.8233,1800.8,1800.1,5.844]
[1745597275452,0.03399003,1800.7,1800.1,5.844]
[1745597276513,0.03399003,1800.7,1800.2,5.844]
[1745597277321,0.8041,1800.5,1800.2,5.844]
[1745597277550,1.42449434,1800.5,1800.2,5.844]
[1745597277735,0.8041,1800.5,1800.2,5.844]
[1745597278656,0.8041,1800.5,1800.0,5.845]
[1745597281323,5.43383343,1800.4,1799.4,5.845]
[1745597281524,0.7924,1800.2,1799.4,5.845]
[1745597281733,0.7924,1800.0,1799.5,0.5845]
[1745597281940,0.03399003,1799.9,1799.5,0.5845]
[1745597282135,0.82639003,1800.0,1799.4,5.845]
[1745597282471,0.7527,1799.7,1799.4,5.845]
[1745597282622,0.03399003,1799.6,1799.4,5.845]
[1745597283257,0.7564,1799.5,1799.4,5.845]
[1745597283477,0.7564,1799.5,1798.9,22.505]
[1745597283679,0.7564,1799.5,1799.0,2.2505]
[1745597283877,0.7564,1799.5,1798.9,22.505]
[1745597283878,0.03399003,1799.4,1798.9,22.505]
[1745597284170,0.762,1799.3,1798.9,5.846]
[1745597284472,0.03399003,1799.2,1798.9,5.846]
[1745597285125,0.7956,1799.1,1798.5,5.846]
[1745597285471,0.03399003,1799.0,1798.5,5.846]
[1745597285670,0.7956,1799.1,1798.5,6.4306]
[1745597285841,0.03399003,1799.0,1798.5,5.846]
[1745597286047,0.8086,1798.9,1798.5,5.846]
[1745597286247,0.03399003,1798.8,1798.5,5.846]
[1745597286573,0.8086,1798.9,1798.5,5.846]
[1745597287486,0.7714,1799.1,1798.6,0.55]
[1745597287641,0.7714,1799.1,1798.6,1.1896]
[1745597288263,0.8185,1799.4,1798.8,0.55]
[1745597288931,0.8185,1799.4,1798.8,0.96343274]
[1745597290382,0.8185,1799.4,1798.8,6.52253565]
[1745597290679,0.44742277,1799.9,1798.9,5.61427525]
[1745597290680,0.7503,1799.6,1798.9,5.61427525]
[1745597290977,0.7503,1799.6,1799.3,0.55]
[1745597291167,0.7503,1799.8,1799.3,0.55]
[1745597291750,0.7503,1799.8,1799.3,9.64910951]
[1745597292048,0.8206,1800.2,1799.4,6.10728373]
[1745597292236,0.8206,1800.2,1799.6,0.55]
[1745597293074,0.8206,1800.2,1799.5,6.45872837]
[1745597293075,0.8206,1800.2,1799.5,5.848]
[1745597293277,0.82459003,1800.1,1799.5,5.848]
[1745597297772,0.7906,1800.1,1799.5,5.848]
[1745597299361,0.03399003,1800.0,1799.5,5.848]
[1745597299796,0.8147,1799.9,1799.5,5.848]
[1745597301108,0.7888,1800.2,1799.5,6.4328]
[1745597301312,0.7888,1800.0,1799.5,5.848]
[1745597302686,0.03399003,1800.3,1799.6,1.3812]
[1745597302687,0.7648,1800.3,1799.6,1.3812]
[1745597303585,0.03399003,1800.2,1799.6,1.3812]
[1745597304112,0.7648,1800.3,1799.8,0.55]
[1745597304423,0.8261,1800.5,1800.1,0.7597]
[1745597305324,0.05,1800.9,1800.1,0.7597]
[1745597305482,0.8261,1800.8,1800.1,0.7597]
[1745597305682,0.86009003,1800.8,1800.1,0.7597]
[1745597307180,0.86009003,1800.8,1800.0,5.846]
[1745597308109,0.86009003,1800.8,1800.0,6.51251]
[1745597308617,6.25993343,1800.8,1800.0,6.51251]
[1745597309260,0.8261,1800.8,1800.1,0.55]
[1745597309556,0.86009003,1800.8,1800.0,6.51251]
[1745597309919,1.16305053,1800.8,1800.0,6.51251]
[1745597310510,1.16305053,1800.8,1800.1,0.651251]
[1745597310914,1.1290605,1800.8,1800.2,0.7755]
[1745597311153,0.05,1800.9,1800.3,0.55]
[1745597312953,0.03399003,1800.8,1800.2,0.7755]
[1745597313160,0.7766,1800.7,1800.0,6.6215]
[1745597313308,0.7766,1800.7,1800.1,0.66215]
[1745597313511,0.7766,1800.7,1800.2,0.55]
[1745597313761,0.05,1800.9,1800.2,0.55]
[1745597315157,0.05,1800.9,1800.3,0.7939]
[1745597315367,0.7983,1800.8,1800.3,0.7939]
[1745597315958,0.03399003,1800.7,1799.9,6.6285]
[1745597316118,0.40507265,1800.7,1799.9,7.33200312]
[1745597317853,1.10137673,1800.8,1800.1,0.7531]
[1745597318015,0.03399003,1800.7,1800.1,0.7531]
[1745597318935,0.83229003,1800.8,1800.1,0.7531]
[1745597319940,0.7983,1800.8,1800.1,0.7531]
[1745597320659,1.30281936,1800.8,1800.1,0.7531]
[1745597320956,1.98148464,1800.8,1800.1,0.7531]
[1745597321513,0.03399003,1800.7,1800.1,0.7531]
[1745597322417,0.03399003,1800.7,1800.0,0.8079]
[1745597323234,2.31837468,1800.8,1800.0,0.8079]
[1745597323868,2.28438465,1800.8,1800.1,0.55]
[1745597324526,2.28438465,1800.8,1800.1,1.29687054]
[1745597324732,1.60571937,1800.8,1800.2,0.8079]
[1745597324933,0.30290001,1800.8,1800.2,0.8079]
[1745597325165,5.75274341,1800.9,1800.2,0.8079]
[1745597326765,0.5063031,1800.8,1800.2,0.8079]
[1745597327260,0.80920311,1800.8,1800.2,0.8079]
[1745597327444,0.80920311,1800.8,1800.2,1.23154362]
[1745597331077,0.80920311,1800.8,1800.2,0.8079]
[1745597331078,0.8266,1800.6,1800.2,0.8079]
[1745597332069,0.5063031,1800.5,1800.2,0.8079]
[1745597333079,0.30290001,1800.7,1800.3,0.05554327]
[1745597333375,0.30290001,1800.7,1800.5,0.7719]
[1745597333984,1.56312779,1800.8,1800.4,5.841]
[1745597334467,0.81132779,1800.7,1800.4,5.841]
[1745597334974,0.50842778,1800.6,1800.4,5.841]
[1745597335339,0.81132779,1800.6,1800.4,5.841]
[1745597335537,0.50842778,1800.5,1800.4,5.841]
[1745597338343,0.81132779,1800.5,1800.4,5.841]
[1745597339141,0.50842778,1800.5,1800.4,5.841]
[1745597341387,0.8076,1800.4,1799.9,0.8151]
[1745597341583,0.84159003,1800.4,1799.8,22.502]
[1745597341772,0.81132779,1800.3,1799.8,22.502]
[1745597342345,0.54241781,1800.2,1799.8,22.502]
[1745597342546,0.54241781,1800.2,1799.8,5.841]
[1745597342787,0.50842778,1800.1,1799.8,5.841]
[1745597343152,0.50842778,1800.0,1799.8,5.841]
[1745597343557,0.50842778,1800.1,1799.8,6.4251]
[1745597344193,0.81132779,1800.3,1799.9,0.7938]
[1745597344897,1.61892779,1800.4,1799.9,0.7938]
[1745597345248,1.31602778,1800.4,1799.9,0.7938]
[1745597345448,0.50842778,1800.3,1799.9,0.7938]